[Event "*** SCC Grand Prix: Titled Tuesday Blitz"]
[Site "Chess.com"]
[Date "2020.10.06"]
[Round "10"]
[White "chessfrendz"]
[Black "FloMaster111"]
[Result "0-1"]
[WhiteElo "2383"]
[BlackElo "2551"]
[TimeControl "180+1"]
[EndTime "12:00:32 PDT"]
[Termination "FloMaster111 won by checkmate"]

1. d4 {[%clk 0:03:00.9]} 1... d5 {[%clk 0:02:59.9]} 2. Nf3 {[%clk 0:02:59]} 2...
Nf6 {[%clk 0:02:59.2]} 3. Bf4 {[%clk 0:02:59.5]} 3... c5 {[%clk 0:02:59]} 4. e3
{[%clk 0:02:58.9]} 4... Nc6 {[%clk 0:02:59.3]} 5. c3 {[%clk 0:02:55.5]} 5... Qb6
{[%clk 0:02:58.1]} 6. Qb3 {[%clk 0:02:54.5]} 6... c4 {[%clk 0:02:58.1]} 7. Qxb6
{[%clk 0:02:52]} 7... axb6 {[%clk 0:02:59]} 8. Nbd2 {[%clk 0:02:48.7]} 8... b5
{[%clk 0:02:57.6]} 9. Ne5 {[%clk 0:02:47.5]} 9... Bf5 {[%clk 0:02:51.1]} 10.
Nxc6 {[%clk 0:02:46.6]} 10... bxc6 {[%clk 0:02:52]} 11. a3 {[%clk 0:02:44.1]}
11... e6 {[%clk 0:02:51.9]} 12. Rc1 {[%clk 0:02:36.1]} 12... c5 {[%clk
0:02:51.7]} 13. dxc5 {[%clk 0:02:33.3]} 13... Bxc5 {[%clk 0:02:52.6]} 14. Be2
{[%clk 0:02:32.7]} 14... O-O {[%clk 0:02:52.5]} 15. O-O {[%clk 0:02:32]} 15...
Rfe8 {[%clk 0:02:49]} 16. Be5 {[%clk 0:02:30.4]} 16... Nd7 {[%clk 0:02:48.8]}
17. Bg3 {[%clk 0:02:27.6]} 17... e5 {[%clk 0:02:31.3]} 18. Rfd1 {[%clk
0:02:15.1]} 18... d4 {[%clk 0:02:12.7]} 19. cxd4 {[%clk 0:02:14]} 19... exd4
{[%clk 0:02:13.6]} 20. exd4 {[%clk 0:02:07.5]} 20... Bxd4 {[%clk 0:02:08.9]} 21.
Nxc4 {[%clk 0:02:05]} 21... bxc4 {[%clk 0:01:48]} 22. Rxd4 {[%clk 0:02:02.2]}
22... Rxe2 {[%clk 0:01:47.4]} 23. Rdxc4 {[%clk 0:02:01.8]} 23... Rxb2 {[%clk
0:01:35]} 24. h4 {[%clk 0:01:56.8]} 24... Rb1 {[%clk 0:01:30.9]} 25. Rxb1 {[%clk
0:01:52]} 25... Bxb1 {[%clk 0:01:31.8]} 26. Bf4 {[%clk 0:01:46.2]} 26... h6
{[%clk 0:01:21.8]} 27. Bd6 {[%clk 0:01:42.2]} 27... Bf5 {[%clk 0:01:16.2]} 28.
f3 {[%clk 0:01:39.9]} 28... Be6 {[%clk 0:01:16.2]} 29. Rd4 {[%clk 0:01:36.9]}
29... f6 {[%clk 0:01:13]} 30. Kf2 {[%clk 0:01:36.3]} 30... Kf7 {[%clk
0:01:13.9]} 31. Bb4 {[%clk 0:01:35.9]} 31... Nb6 {[%clk 0:01:09.9]} 32. g4
{[%clk 0:01:26.6]} 32... Nc4 {[%clk 0:01:06.6]} 33. Rd3 {[%clk 0:01:24.3]} 33...
Ne5 {[%clk 0:01:02.2]} 34. Rc3 {[%clk 0:01:22.9]} 34... Rc8 {[%clk 0:01:00.5]}
35. Rxc8 {[%clk 0:01:18]} 35... Bxc8 {[%clk 0:01:01.4]} 36. Ke3 {[%clk
0:01:17.6]} 36... Bb7 {[%clk 0:00:59.2]} 37. g5 {[%clk 0:01:09]} 37... Nxf3
{[%clk 0:00:49.7]} 38. gxh6 {[%clk 0:01:07.1]} 38... gxh6 {[%clk 0:00:49.7]} 39.
h5 {[%clk 0:01:06.3]} 39... Ne5 {[%clk 0:00:44.3]} 40. a4 {[%clk 0:00:48.2]}
40... Ke6 {[%clk 0:00:29.8]} 41. Bc3 {[%clk 0:00:45.4]} 41... Kd5 {[%clk
0:00:20]} 42. Kf4 {[%clk 0:00:42]} 42... Ke6 {[%clk 0:00:19.7]} 43. a5 {[%clk
0:00:39.5]} 43... Ba6 {[%clk 0:00:18]} 44. Bd4 {[%clk 0:00:37.5]} 44... Be2
{[%clk 0:00:17.5]} 45. Ke3 {[%clk 0:00:32.6]} 45... Bxh5 {[%clk 0:00:08.3]} 46.
a6 {[%clk 0:00:23.1]} 46... Be8 {[%clk 0:00:08.2]} 47. a7 {[%clk 0:00:20.6]}
47... Bc6 {[%clk 0:00:07.4]} 48. Kf4 {[%clk 0:00:20.4]} 48... h5 {[%clk
0:00:06.2]} 49. Kg3 {[%clk 0:00:17.5]} 49... Ng6 {[%clk 0:00:05.6]} 50. Be3
{[%clk 0:00:14.6]} 50... Kf5 {[%clk 0:00:05.2]} 51. Bd4 {[%clk 0:00:14.1]} 51...
Kg5 {[%clk 0:00:04.8]} 52. Be3+ {[%clk 0:00:13.4]} 52... Kf5 {[%clk 0:00:04.9]}
53. Bd4 {[%clk 0:00:13.7]} 53... h4+ {[%clk 0:00:04.7]} 54. Kh3 {[%clk
0:00:12.8]} 54... Kg5 {[%clk 0:00:04.6]} 55. Be3+ {[%clk 0:00:12.7]} 55... Kh5
{[%clk 0:00:03.8]} 56. Bf2 {[%clk 0:00:12.5]} 56... f5 {[%clk 0:00:03.5]} 57.
Be3 {[%clk 0:00:12.4]} 57... f4 {[%clk 0:00:03.2]} 58. Bf2 {[%clk 0:00:12.6]}
58... Kg5 {[%clk 0:00:02]} 59. Kh2 {[%clk 0:00:12]} 59... Kg4 {[%clk 0:00:01.8]}
60. Be1 {[%clk 0:00:10.8]} 60... Ba8 {[%clk 0:00:02.7]} 61. Bf2 {[%clk
0:00:10.7]} 61... f3 {[%clk 0:00:03.3]} 62. Be1 {[%clk 0:00:10.4]} 62... Ne5
{[%clk 0:00:03.8]} 63. Bf2 {[%clk 0:00:10]} 63... Nd3 {[%clk 0:00:04.4]} 64. Be3
{[%clk 0:00:09.9]} 64... f2 {[%clk 0:00:04.9]} 65. Bxf2 {[%clk 0:00:09.8]} 65...
Nxf2 {[%clk 0:00:05.8]} 66. Kg1 {[%clk 0:00:09.7]} 66... Nd3 {[%clk 0:00:06.7]}
67. Kh2 {[%clk 0:00:09.6]} 67... Nb4 {[%clk 0:00:07.6]} 68. Kg1 {[%clk
0:00:09.5]} 68... Nc6 {[%clk 0:00:08.5]} 69. Kh2 {[%clk 0:00:09.8]} 69... Nxa7
{[%clk 0:00:09.4]} 70. Kg1 {[%clk 0:00:10.6]} 70... Bb7 {[%clk 0:00:10.3]} 71.
Kh2 {[%clk 0:00:11.5]} 71... Ba6 {[%clk 0:00:11.2]} 72. Kg1 {[%clk 0:00:12.3]}
72... Nc8 {[%clk 0:00:12.1]} 73. Kh2 {[%clk 0:00:13.2]} 73... Ne7 {[%clk
0:00:13]} 74. Kg1 {[%clk 0:00:14.1]} 74... Ng6 {[%clk 0:00:13.9]} 75. Kh2 {[%clk
0:00:15]} 75... Ne5 {[%clk 0:00:14.8]} 76. Kg1 {[%clk 0:00:15.9]} 76... h3
{[%clk 0:00:15.2]} 77. Kh2 {[%clk 0:00:16.8]} 77... Kh4 {[%clk 0:00:15.7]} 78.
Kg1 {[%clk 0:00:17.7]} 78... Kg3 {[%clk 0:00:16.6]} 79. Kh1 {[%clk 0:00:17]}
79... Nc4 {[%clk 0:00:17.5]} 80. Kg1 {[%clk 0:00:17.6]} 80... Nb2 {[%clk
0:00:18.4]} 81. Kh1 {[%clk 0:00:17.6]} 81... Nd3 {[%clk 0:00:19.3]} 82. Kg1
{[%clk 0:00:18.5]} 82... Bc8 {[%clk 0:00:18.3]} 83. Kh1 {[%clk 0:00:19.4]} 83...
Nf2+ {[%clk 0:00:18.4]} 84. Kg1 {[%clk 0:00:20.3]} 84... h2+ {[%clk 0:00:19.3]}
85. Kf1 {[%clk 0:00:20.1]} 85... h1=Q+ {[%clk 0:00:19.7]} 86. Ke2 {[%clk
0:00:21]} 86... Qd1+ {[%clk 0:00:20.1]} 87. Ke3 {[%clk 0:00:21.9]} 87... Qe1+
{[%clk 0:00:20.7]} 88. Kd4 {[%clk 0:00:22.8]} 88... Qe4+ {[%clk 0:00:21.2]} 89.
Kc5 {[%clk 0:00:22.5]} 89... Qe5+ {[%clk 0:00:21.4]} 90. Kc4 {[%clk 0:00:22]}
90... Qd6 {[%clk 0:00:21.6]} 91. Kc3 {[%clk 0:00:22.9]} 91... Qd5 {[%clk
0:00:21.8]} 92. Kc2 {[%clk 0:00:23.8]} 92... Ng4 {[%clk 0:00:21.9]} 93. Kc3
{[%clk 0:00:24.7]} 93... Ne5 {[%clk 0:00:22.6]} 94. Kb4 {[%clk 0:00:25.5]} 94...
Qc6 {[%clk 0:00:22.7]} 95. Kb3 {[%clk 0:00:25.1]} 95... Qc5 {[%clk 0:00:23]} 96.
Kb2 {[%clk 0:00:26]} 96... Qc4 {[%clk 0:00:23.2]} 97. Ka3 {[%clk 0:00:25.1]}
97... Qb5 {[%clk 0:00:23.2]} 98. Ka2 {[%clk 0:00:26]} 98... Nf3 {[%clk
0:00:23.8]} 99. Ka3 {[%clk 0:00:26.9]} 99... Nd4 {[%clk 0:00:24.7]} 100. Ka2
{[%clk 0:00:27.8]} 100... Qb3+ {[%clk 0:00:24.2]} 101. Ka1 {[%clk 0:00:28.6]}
101... Nc2# {[%clk 0:00:25.1]} 0-1